bitfinex-derivatives/quotes_BTCF0:USTF0_20260221
["timestamp","ask_amount","ask_price","bid_price","bid_amount"]
[1771693549854,0.01463,68373.0,68368.0,0.014631]
[1771693550155,0.01463,68373.0,68367.0,0.014631]
[1771693550355,0.02926,68372.0,68366.0,0.014631]
[1771693550646,0.029259,68374.0,68368.0,0.01463]
[1771693551355,0.001,68373.0,68368.0,0.01463]
[1771693553451,0.029259,68374.0,68368.0,0.01563]
[1771693554051,0.029259,68374.0,68368.0,0.01551]
[1771693554256,0.001,68373.0,68368.0,0.01463]
[1771693554650,0.01563,68373.0,68368.0,0.01463]
[1771693556452,0.01463,68373.0,68368.0,0.01463]
[1771693557157,0.01563,68373.0,68368.0,0.01463]
[1771693557761,0.01463,68373.0,68368.0,0.01463]
[1771693557957,0.01563,68373.0,68368.0,0.01463]
[1771693559362,0.01463,68373.0,68368.0,0.01463]
[1771693559661,0.01563,68373.0,68368.0,0.01463]
[1771693568860,0.01463,68373.0,68368.0,0.01463]
[1771693569066,0.001,68373.0,68368.0,0.01463]
[1771693569269,0.001,68373.0,68369.0,0.01463]
[1771693570467,0.014629,68374.0,68369.0,0.01463]
[1771693570671,0.001,68373.0,68369.0,0.01463]
[1771693572272,0.015629,68374.0,68369.0,0.01463]
[1771693572871,0.014629,68374.0,68369.0,0.01463]
[1771693573072,0.001,68373.0,68369.0,0.01463]
[1771693573571,0.015629,68374.0,68369.0,0.01463]
[1771693575475,0.014629,68374.0,68369.0,0.01463]
[1771693575675,0.001,68373.0,68369.0,0.01463]
[1771693576176,0.015629,68374.0,68369.0,0.01463]
[1771693576677,0.014629,68374.0,68369.0,0.01463]
[1771693576865,0.001,68373.0,68369.0,0.01463]
[1771693577475,0.001,68374.0,68369.0,0.01463]
[1771693578472,0.22068358,68372.0,68350.0,0.014634]
[1771693578678,0.014632,68363.0,68355.0,0.014633]
[1771693578869,0.014631,68365.0,68356.0,0.014633]
[1771693579071,0.0571001,68370.0,68357.0,0.014633]
[1771693579072,0.014632,68364.0,68357.0,0.014633]
[1771693580374,0.014632,68364.0,68357.0,0.015633]
[1771693582073,0.014632,68364.0,68349.0,0.014635]
[1771693582074,0.014632,68362.0,68351.0,0.014634]
[1771693582284,0.014632,68362.0,68355.0,0.014633]
[1771693582484,0.014632,68362.0,68355.0,0.029266]
[1771693582882,0.014632,68362.0,68355.0,0.014633]
[1771693583082,0.014632,68362.0,68355.0,0.029266]
[1771693583282,0.014632,68361.0,68354.0,0.014634]
[1771693583482,0.014632,68361.0,68351.0,0.014634]
[1771693583483,0.014633,68358.0,68351.0,0.015634]
[1771693583883,0.014633,68357.0,68351.0,0.015634]
[1771693584075,0.014633,68357.0,68355.0,0.001]
[1771693584385,0.014633,68357.0,68351.0,0.014634]
[1771693585585,0.014633,68358.0,68351.0,0.014634]
[1771693586378,0.014633,68358.0,68351.0,0.029268]
[1771693586680,0.029266,68358.0,68351.0,0.014634]
[1771693587082,0.014633,68357.0,68351.0,0.014634]
[1771693587686,0.014633,68359.0,68352.0,0.014634]
[1771693587888,0.014632,68360.0,68348.0,0.014635]
[1771693587889,0.014632,68360.0,68353.0,0.029268]
[1771693588090,0.014632,68360.0,68353.0,0.014634]
[1771693588583,0.001,68358.0,68353.0,0.014634]
[1771693589189,0.015632,68360.0,68353.0,0.014634]
[1771693589785,0.014633,68359.0,68353.0,0.014634]
[1771693590092,0.001,68358.0,68353.0,0.014634]
[1771693590483,0.014633,68359.0,68353.0,0.014634]
[1771693592293,0.015633,68359.0,68353.0,0.014634]
[1771693596294,0.015633,68359.0,68353.0,0.0188572]
[1771693597399,0.014633,68357.0,68353.0,0.0042232]
[1771693597596,0.014633,68358.0,68351.0,0.00871316]
[1771693597791,0.014634,68351.0,68346.0,1e-08]
[1771693598801,0.014635,68350.0,68346.0,1e-08]
[1771693598999,0.1993518,68359.0,68346.0,1e-08]
[1771693599206,0.014636,68344.0,68336.0,0.014637]
[1771693599498,0.014636,68342.0,68335.0,0.014638]
[1771693600092,0.014636,68342.0,68336.0,0.014637]
[1771693600291,0.014636,68343.0,68337.0,0.014637]
[1771693600497,0.029272,68343.0,68336.0,0.014637]
[1771693600895,0.014636,68343.0,68336.0,0.014637]
[1771693601495,0.014636,68343.0,68337.0,0.014637]
[1771693602005,0.015636,68343.0,68337.0,0.014637]
[1771693603104,0.015636,68343.0,68335.0,0.014638]
[1771693603105,0.015636,68343.0,68336.0,0.014637]
[1771693603301,0.015636,68343.0,68337.0,0.014637]
[1771693603700,0.015636,68343.0,68314.0,0.12917177]
[1771693603701,0.01011063,68320.0,68306.0,0.014644]
[1771693603897,0.014643,68310.0,68302.0,0.014645]
[1771693604203,0.014643,68308.0,68302.0,0.014645]
[1771693604408,0.014644,68306.0,68301.0,0.21276303]
[1771693604603,0.014643,68311.0,68301.0,0.21276303]
[1771693604604,0.014645,68302.0,68301.0,0.21276303]
[1771693604900,0.014645,68300.0,68291.0,0.014647]
[1771693605096,0.014645,68300.0,68293.0,0.014647]
[1771693605292,0.014645,68301.0,68294.0,0.014646]
[1771693605696,0.014645,68300.0,68294.0,0.014646]
[1771693606305,0.01472,68299.0,68293.0,0.014647]
[1771693606701,0.029365,68299.0,68293.0,0.014647]
[1771693606909,0.014646,68298.0,68292.0,0.014647]
[1771693607112,0.014646,68298.0,68293.0,0.014647]
[1771693607415,0.014646,68298.0,68290.0,0.20408338]
[1771693607605,0.014646,68298.0,68291.0,0.014647]
[1771693607808,0.014646,68297.0,68291.0,0.014647]
[1771693608219,0.014646,68297.0,68290.0,0.20408338]
[1771693608519,0.1993518,68291.0,68260.0,0.33499644]
[1771693608712,0.01465,68280.0,68269.0,0.014652]
[1771693608911,0.01465,68276.0,68268.0,0.014652]
[1771693609119,0.014651,68273.0,68266.0,0.014652]
[1771693609318,0.014651,68271.0,68264.0,0.00014057]
[1771693609516,0.014652,68269.0,68264.0,0.00014057]
[1771693609707,0.014652,68268.0,68264.0,0.00014057]
[1771693610220,0.014652,68268.0,68252.0,0.014655]
[1771693610221,0.014652,68270.0,68252.0,0.014655]
[1771693610516,0.014653,68265.0,68259.0,0.014654]
[1771693610710,0.014653,68264.0,68258.0,0.014654]
[1771693610906,0.014653,68262.0,68261.0,0.00146302]
[1771693611114,0.014653,68264.0,68261.0,0.00146302]
[1771693611314,0.014653,68265.0,68256.0,0.014654]
[1771693611315,0.01477782,68263.0,68256.0,0.014654]
[1771693612025,0.014653,68262.0,68256.0,0.014654]
[1771693612225,0.014653,68262.0,68254.0,0.014655]
[1771693612226,0.014653,68262.0,68255.0,0.014655]
[1771693612617,0.014653,68262.0,68256.0,0.001]
[1771693613223,0.014653,68262.0,68255.0,0.014655]
[1771693613414,0.014652,68267.0,68261.0,0.014653]
[1771693613620,0.2564519,68280.0,68255.0,0.014655]
[1771693613621,0.014653,68266.0,68260.0,0.014654]
[1771693614012,0.014653,68265.0,68257.0,0.014654]
[1771693614618,0.00012114,68264.0,68257.0,0.014654]
[1771693615220,0.00012114,68264.0,68258.0,0.014654]
[1771693615527,0.014653,68263.0,68256.0,0.014655]
[1771693615823,0.014653,68263.0,68257.0,0.014654]
[1771693616227,0.00012114,68264.0,68258.0,0.014654]
[1771693617124,0.01477414,68264.0,68258.0,0.014654]
[1771693618520,0.014652,68267.0,68258.0,0.014654]
[1771693618720,0.014653,68265.0,68258.0,0.014654]
[1771693619021,0.014653,68265.0,68257.0,0.014654]
[1771693619624,0.01471481,68264.0,68257.0,0.014654]
[1771693619927,0.01471481,68264.0,68258.0,0.001]
[1771693620321,0.01471481,68264.0,68258.0,0.015654]
[1771693620627,0.014652,68269.0,68258.0,0.015654]
[1771693620828,0.014653,68264.0,68258.0,0.015654]
[1771693621030,0.014652,68271.0,68264.0,0.014653]
[1771693621228,0.01465,68279.0,68265.0,0.014653]
[1771693621229,0.014651,68273.0,68265.0,0.014653]
[1771693621432,0.014652,68271.0,68264.0,0.029306]
[1771693621731,0.014652,68271.0,68261.0,0.014653]
[1771693621732,0.01465,68278.0,68272.0,0.014651]
[1771693622029,0.17873642,68280.0,68265.0,0.014653]
[1771693622223,0.01465,68279.0,68273.0,0.014651]
[1771693622429,0.01465,68278.0,68272.0,0.014651]
[1771693622626,0.014651,68275.0,68267.0,0.014652]
[1771693622827,0.014651,68275.0,68266.0,0.014652]
[1771693622828,0.014651,68273.0,68266.0,0.014652]
[1771693623020,0.014651,68273.0,68267.0,0.014652]
[1771693623227,0.014651,68274.0,68268.0,0.014652]
[1771693623424,0.014648,68285.0,68263.0,0.20408338]
[1771693623628,0.01465,68280.0,68271.0,0.014651]
[1771693623830,0.014651,68274.0,68268.0,0.014652]
[1771693624228,0.014651,68274.0,68262.0,0.014653]
[1771693624528,0.014652,68268.0,68262.0,0.014653]
[1771693624833,0.014652,68269.0,68263.0,0.014653]
[1771693625033,0.014652,68270.0,68264.0,0.014653]
[1771693625534,0.014652,68270.0,68268.0,0.001]
[1771693626634,0.014651,68272.0,68266.0,0.014652]
[1771693626837,0.014651,68271.0,68256.0,0.21873838]
[1771693627132,0.014651,68271.0,68265.0,0.014653]
[1771693627433,0.001,68270.0,68266.0,0.014652]
[1771693627631,0.014651,68271.0,68266.0,0.014652]
[1771693628635,0.014651,68271.0,68265.0,0.014653]
[1771693629032,0.014652,68270.0,68265.0,0.00092]
[1771693629233,0.19338742,68275.0,68260.0,0.014654]
[1771693629438,0.014652,68268.0,68262.0,0.014653]
[1771693631234,0.014652,68267.0,68262.0,0.014653]
[1771693631637,0.014653,68263.0,68256.0,0.014655]
[1771693632044,0.014653,68263.0,68257.0,0.00084]
[1771693632337,0.014653,68263.0,68257.0,0.014654]
[1771693633430,0.014653,68263.0,68258.0,0.014654]
[1771693633940,0.014651,68271.0,68240.0,0.23524956]
[1771693633941,0.22141741,68267.0,68240.0,0.23524956]
[1771693634135,0.17873642,68250.0,68243.0,0.014657]
[1771693634337,0.17873642,68250.0,68231.0,0.23598236]
[1771693634338,0.014657,68244.0,68239.0,0.014658]
[1771693634641,0.014657,68245.0,68239.0,0.014658]
[1771693635034,0.014657,68244.0,68239.0,0.00092]
[1771693635235,0.014657,68243.0,68238.0,0.014658]
[1771693635438,0.014657,68247.0,68231.0,0.23598236]
[1771693635439,0.014656,68252.0,68231.0,0.0007328]
[1771693635646,0.19339442,68242.0,68237.0,0.014659]
[1771693635835,0.014658,68242.0,68237.0,0.014659]
[1771693636342,0.014658,68242.0,68234.0,0.014659]
[1771693636545,0.014658,68240.0,68234.0,0.014659]
[1771693636934,0.014658,68241.0,68235.0,0.014659]
[1771693637247,0.014658,68241.0,68231.0,0.0007328]
[1771693637248,0.014657,68243.0,68232.0,0.01466]
[1771693637433,0.014659,68237.0,68231.0,0.0153928]
[1771693638338,0.014658,68242.0,68231.0,0.0007328]
[1771693638532,0.014656,68250.0,68244.0,0.014657]
[1771693638735,0.014655,68254.0,68245.0,0.014657]
[1771693638736,0.014656,68252.0,68245.0,0.014657]
[1771693639442,0.014656,68251.0,68245.0,0.014657]
[1771693639634,0.014656,68250.0,68245.0,0.014657]
[1771693640030,0.014656,68251.0,68245.0,0.014657]
[1771693640239,0.17873642,68270.0,68245.0,0.014657]
[1771693640438,0.014652,68267.0,68255.0,0.014655]
[1771693640650,0.014652,68267.0,68258.0,0.014654]
[1771693640651,0.014653,68264.0,68258.0,0.014654]
[1771693640838,0.014652,68267.0,68261.0,0.014654]
[1771693641142,0.014653,68265.0,68258.0,0.014654]
[1771693641334,0.014653,68265.0,68257.0,0.014654]
[1771693641335,0.014653,68264.0,68257.0,0.014654]
[1771693641536,0.014653,68265.0,68258.0,0.014654]
[1771693641937,0.014653,68263.0,68257.0,0.014654]
[1771693642238,0.014653,68262.0,68254.0,0.014655]
[1771693642445,0.014653,68263.0,68256.0,0.014655]
[1771693642838,0.014653,68263.0,68252.0,0.014655]
[1771693643037,0.014653,68263.0,68254.0,0.014655]
[1771693643243,0.014653,68264.0,68257.0,0.014654]
[1771693643443,0.014653,68265.0,68258.0,0.014654]
[1771693643639,0.029306,68265.0,68258.0,0.014654]
[1771693643838,0.014653,68265.0,68258.0,0.014654]
[1771693644540,0.014651,68275.0,68250.0,0.23524956]
[1771693644541,0.01465,68278.0,68252.0,0.23524956]
[1771693644735,0.01465,68278.0,68264.0,0.014653]
[1771693644940,0.014652,68271.0,68264.0,0.014653]
[1771693645346,0.014652,68270.0,68263.0,0.014653]
[1771693645546,0.014652,68270.0,68264.0,0.014653]
[1771693645747,0.014651,68271.0,68264.0,0.014653]
[1771693646139,0.014652,68270.0,68264.0,0.014653]
[1771693646340,0.014652,68269.0,68262.0,0.014653]
[1771693646648,0.014652,68270.0,68263.0,0.014653]
[1771693647447,0.014651,68273.0,68265.0,0.014653]
[1771693647651,0.014651,68272.0,68265.0,0.014653]
[1771693647845,0.029302,68272.0,68265.0,0.014653]
[1771693648044,0.014651,68272.0,68265.0,0.014653]
[1771693648248,0.014651,68271.0,68262.0,0.014653]
[1771693648442,0.014651,68271.0,68263.0,0.014653]
[1771693648748,0.014652,68270.0,68263.0,0.014653]
[1771693650055,0.014652,68270.0,68263.0,0.029306]
[1771693650452,0.014652,68270.0,68263.0,0.014653]
[1771693651157,0.029304,68270.0,68263.0,0.014653]
[1771693651659,0.22141741,68279.0,68263.0,0.014653]
[1771693651660,0.029302,68272.0,68263.0,0.014653]
[1771693652156,0.014651,68272.0,68265.0,0.014653]
[1771693652450,0.029302,68274.0,68266.0,0.014652]
[1771693652954,0.01465,68277.0,68268.0,0.014652]
[1771693653155,0.24041209,68276.0,68269.0,0.014652]
[1771693653349,0.01465,68276.0,68268.0,0.014652]
[1771693653550,0.01465,68276.0,68265.0,0.014653]
[1771693653755,0.014651,68273.0,68266.0,0.014652]
[1771693654049,0.014651,68273.0,68266.0,0.015652]
[1771693654851,0.014651,68275.0,68266.0,0.015652]
[1771693655158,0.014651,68274.0,68266.0,0.015652]
[1771693655554,0.22141741,68274.0,68253.0,0.23524956]
[1771693655751,0.014654,68257.0,68249.0,0.014656]
[1771693655946,0.014655,68255.0,68244.0,0.23524956]
[1771693656151,0.014655,68254.0,68246.0,0.014657]
[1771693656454,0.014655,68254.0,68247.0,0.014656]
[1771693657558,0.014655,68254.0,68248.0,0.014656]
[1771693657745,0.014653,68264.0,68252.0,0.014655]
[1771693657946,0.014653,68264.0,68240.0,0.20106675]
[1771693657947,0.014653,68264.0,68255.0,0.014655]
[1771693659160,0.014653,68263.0,68255.0,0.014655]
[1771693660460,0.014653,68264.0,68256.0,0.014655]
[1771693660855,0.014652,68268.0,68255.0,0.001]
[1771693661052,0.014652,68267.0,68259.0,0.014654]
[1771693662053,0.014653,68266.0,68259.0,0.014654]
[1771693663060,0.014653,68266.0,68259.0,0.015654]
[1771693663656,0.015653,68266.0,68259.0,0.014654]
[1771693664458,0.014653,68265.0,68255.0,0.014655]
[1771693664665,0.014653,68265.0,68251.0,0.014656]
[1771693665060,0.014653,68262.0,68250.0,0.014656]
[1771693665761,0.014654,68258.0,68251.0,0.014656]
[1771693665960,0.014654,68258.0,68251.0,0.015656]
[1771693666162,0.014654,68257.0,68251.0,0.001]
[1771693666661,0.014654,68258.0,68245.0,0.014657]
[1771693666861,0.014655,68254.0,68247.0,0.014656]
[1771693667066,0.014655,68254.0,68250.0,0.001]
[1771693667962,0.014656,68251.0,68244.0,0.014657]
[1771693668160,0.014655,68253.0,68246.0,0.014657]
[1771693668762,0.014655,68253.0,68246.0,0.029314]
[1771693668966,0.014655,68255.0,68246.0,0.014657]
[1771693668967,0.014655,68254.0,68246.0,0.014657]
[1771693669160,0.014655,68254.0,68247.0,0.014657]
[1771693669869,0.014655,68257.0,68250.0,0.014656]
[1771693670064,0.014655,68256.0,68248.0,0.014656]
[1771693670266,0.014655,68255.0,68249.0,0.014656]
[1771693672163,0.014655,68255.0,68250.0,0.001]
[1771693672366,0.014655,68256.0,68250.0,0.015656]
[1771693672667,0.014655,68256.0,68247.0,0.014656]
[1771693672668,0.014655,68256.0,68249.0,0.014656]
[1771693673066,0.014654,68258.0,68251.0,0.014656]
[1771693673370,0.001,68255.0,68251.0,0.014656]
[1771693674071,0.014654,68258.0,68250.0,0.014656]
[1771693674267,0.014654,68257.0,68250.0,0.014656]
[1771693674666,0.014655,68256.0,68249.0,0.014656]
[1771693675272,0.014653,68266.0,68245.0,0.22864905]
[1771693675468,0.014653,68263.0,68255.0,0.014655]
[1771693675672,0.014654,68261.0,68254.0,0.014655]
[1771693676869,0.014653,68262.0,68254.0,0.03031]
[1771693677066,0.014653,68264.0,68256.0,0.014655]
[1771693677372,0.17875622,68270.0,68256.0,0.014655]
[1771693677672,0.014653,68264.0,68257.0,0.014654]
[1771693678268,0.014652,68268.0,68257.0,0.014654]
[1771693678465,0.014652,68267.0,68258.0,0.014654]
[1771693678775,0.014653,68265.0,68258.0,0.014654]
[1771693678965,0.014653,68265.0,68257.0,0.014654]
[1771693679169,0.014653,68264.0,68257.0,0.014654]
[1771693679772,0.014653,68264.0,68258.0,0.001]
[1771693680375,0.015653,68264.0,68257.0,0.014654]
[1771693681967,0.014653,68262.0,68253.0,0.014655]
[1771693682172,0.014653,68262.0,68254.0,0.014655]
[1771693682980,0.014653,68262.0,68255.0,0.014655]
[1771693683377,0.014653,68263.0,68255.0,0.014655]
[1771693683879,0.014652,68267.0,68258.0,0.014654]
[1771693684181,0.014653,68266.0,68258.0,0.014654]
[1771693684775,0.014651,68274.0,68266.0,0.014652]
[1771693684981,0.014651,68274.0,68265.0,0.014653]
[1771693685478,0.014651,68273.0,68265.0,0.014653]
[1771693685682,0.014651,68272.0,68264.0,0.014653]
[1771693685878,0.014651,68273.0,68265.0,0.014653]
[1771693686074,0.014651,68273.0,68267.0,0.0008]
[1771693686376,0.014651,68275.0,68265.0,0.015653]
[1771693686682,0.014651,68275.0,68267.0,0.014652]
[1771693686979,0.014651,68273.0,68265.0,0.015653]
[1771693687180,0.014651,68274.0,68266.0,0.014652]
[1771693687878,0.01465,68278.0,68270.0,0.014652]
[1771693688071,0.01465,68278.0,68270.0,0.014651]
[1771693688773,0.01465,68277.0,68269.0,0.014652]
[1771693689083,0.01465,68276.0,68268.0,0.014652]
[1771693692981,0.01565,68276.0,68268.0,0.014652]
[1771693693187,0.014651,68275.0,68266.0,0.014652]
[1771693693382,0.014651,68275.0,68267.0,0.014652]
[1771693695488,0.015651,68275.0,68267.0,0.014652]
[1771693696087,0.014653,68263.0,68255.0,0.014655]
[1771693696276,0.014653,68264.0,68257.0,0.014654]
[1771693696587,0.014653,68264.0,68256.0,0.014655]
[1771693696778,0.014653,68263.0,68254.0,0.014655]
[1771693696983,0.014653,68263.0,68255.0,0.014655]
[1771693697184,0.014653,68263.0,68256.0,0.014655]
[1771693697581,0.014653,68264.0,68257.0,0.014654]
[1771693698084,0.014653,68264.0,68258.0,0.00084]
[1771693698288,0.014653,68264.0,68257.0,0.014654]
[1771693698584,0.014653,68263.0,68257.0,0.014654]
[1771693699188,0.029306,68265.0,68258.0,0.014654]
[1771693699396,0.014652,68269.0,68262.0,0.014653]
[1771693699582,0.014652,68268.0,68260.0,0.014654]
[1771693700698,0.014652,68267.0,68260.0,0.014654]
[1771693701387,0.05728547,68280.0,68261.0,0.014653]
[1771693701693,0.014652,68267.0,68260.0,0.014654]
[1771693701990,0.014652,68269.0,68260.0,0.014654]
[1771693702798,0.014652,68267.0,68260.0,0.014654]
[1771693703091,0.014652,68267.0,68260.0,0.015654]
[1771693703294,0.014652,68266.0,68260.0,0.015654]
[1771693705194,0.014652,68266.0,68260.0,0.014654]
[1771693706490,0.014652,68267.0,68260.0,0.014654]
[1771693706793,0.014653,68266.0,68260.0,0.014654]
[1771693708090,0.014653,68266.0,68258.0,0.014654]
[1771693708691,0.014653,68266.0,68260.0,0.014654]
[1771693708998,0.014653,68266.0,68258.0,0.014654]
[1771693709494,0.014652,68267.0,68260.0,0.014654]
[1771693710293,0.014652,68269.0,68260.0,0.014654]
[1771693710591,0.014649,68281.0,68273.0,0.014651]
[1771693710784,0.01465,68279.0,68273.0,0.014651]
[1771693711181,0.01465,68278.0,68272.0,0.014651]
[1771693711888,0.01465,68277.0,68271.0,0.014651]
[1771693713885,0.01465,68279.0,68271.0,0.014651]
[1771693713886,0.01465,68278.0,68272.0,0.014651]
[1771693715197,0.014648,68287.0,68272.0,0.014651]
[1771693715398,0.014649,68283.0,68273.0,0.014651]
[1771693715598,0.014649,68282.0,68273.0,0.014651]
[1771693715786,0.014648,68287.0,68281.0,0.014649]
[1771693716187,0.014648,68287.0,68272.0,0.014651]
[1771693716497,0.014648,68287.0,68280.0,0.014649]
[1771693716892,0.014648,68288.0,68281.0,0.014649]
[1771693717399,0.014648,68288.0,68282.0,0.014649]
[1771693717694,0.014646,68295.0,68288.0,0.014648]
[1771693717893,0.13378035,68306.0,68289.0,0.014647]
[1771693717894,0.014646,68298.0,68289.0,0.014647]
[1771693718094,0.014647,68294.0,68286.0,0.014648]
[1771693718295,0.014646,68298.0,68286.0,0.014648]
[1771693718489,0.22931559,68297.0,68290.0,0.014647]
[1771693718689,0.014646,68298.0,68290.0,0.014647]
[1771693718891,0.014646,68298.0,68289.0,0.014647]
[1771693718892,0.22931559,68297.0,68289.0,0.014647]
[1771693719085,0.014646,68297.0,68289.0,0.014648]
[1771693720299,0.029292,68298.0,68290.0,0.014647]
[1771693720595,0.014646,68297.0,68290.0,0.014647]
[1771693720802,0.014646,68298.0,68290.0,0.014647]
[1771693721188,0.014644,68307.0,68291.0,0.22799197]
[1771693721397,0.014641,68319.0,68309.0,0.014643]
[1771693721698,0.014642,68317.0,68309.0,0.014643]
[1771693721895,0.014642,68316.0,68307.0,0.014644]
[1771693722596,0.01464,68325.0,68300.0,0.05728547]
[1771693722797,0.01464,68323.0,68314.0,0.014642]
[1771693722995,0.01464,68322.0,68314.0,0.014642]
[1771693723206,0.22173993,68327.0,68315.0,0.014642]
[1771693723504,0.01464,68323.0,68315.0,0.014642]
[1771693724400,0.01464,68324.0,68315.0,0.014642]
[1771693724701,0.01464,68323.0,68314.0,0.014642]
[1771693725201,0.01464,68323.0,68315.0,0.014642]
[1771693725393,0.22173993,68320.0,68282.0,0.014649]
[1771693725601,0.014644,68307.0,68287.0,0.014648]
[1771693725801,0.014645,68300.0,68291.0,0.014647]
[1771693725999,0.014645,68299.0,68291.0,0.014647]
[1771693726304,0.014645,68299.0,68290.0,0.014647]
[1771693726504,0.014646,68295.0,68290.0,0.014647]
[1771693726706,0.014646,68295.0,68288.0,0.014648]
[1771693727003,0.014647,68293.0,68287.0,0.014648]
[1771693727504,0.014647,68293.0,68288.0,0.014648]
[1771693728291,0.014646,68297.0,68292.0,0.014647]
[1771693728999,0.22173993,68330.0,68299.0,0.22798997]
[1771693729203,0.014642,68314.0,68309.0,0.014643]
[1771693729402,0.01464,68325.0,68309.0,0.014643]
[1771693729605,0.014642,68317.0,68311.0,0.014643]
[1771693729904,0.014642,68316.0,68310.0,0.014643]
[1771693730301,0.014642,68316.0,68311.0,0.014643]
[1771693731506,0.014642,68318.0,68312.0,0.014643]
[1771693732199,0.014641,68320.0,68313.0,0.014642]
[1771693732398,0.014641,68319.0,68313.0,0.014642]
[1771693732598,0.014641,68322.0,68305.0,0.21334497]
[1771693732798,0.014641,68320.0,68314.0,0.029284]
[1771693732998,0.014641,68320.0,68313.0,0.014642]
[1771693733207,0.014641,68318.0,68313.0,0.014642]
[1771693736609,0.014642,68317.0,68311.0,0.014643]
[1771693737109,0.014642,68317.0,68312.0,0.014643]
[1771693738405,0.014641,68322.0,68305.0,0.014644]
[1771693738611,0.014642,68314.0,68309.0,0.014643]
[1771693740103,0.014642,68315.0,68309.0,0.014643]
[1771693741010,0.014642,68314.0,68309.0,0.014643]
[1771693741406,0.014642,68315.0,68310.0,0.014643]
[1771693742315,0.014642,68316.0,68311.0,0.014643]
[1771693742705,0.014642,68315.0,68310.0,0.014643]
[1771693743211,0.015642,68315.0,68310.0,0.014643]
[1771693743613,0.015642,68315.0,68309.0,0.014643]
[1771693744813,0.014642,68315.0,68310.0,0.014643]
[1771693746314,0.015642,68315.0,68310.0,0.014643]
[1771693746510,0.001,68315.0,68311.0,0.014643]
[1771693746917,0.001,68315.0,68312.0,0.014643]
[1771693747315,0.015642,68315.0,68310.0,0.014643]
[1771693747512,0.001,68315.0,68310.0,0.014643]
[1771693747919,0.014642,68314.0,68310.0,0.014643]
[1771693748116,0.015642,68315.0,68310.0,0.014643]
[1771693748923,0.014642,68315.0,68310.0,0.014643]
[1771693749221,0.001,68314.0,68311.0,0.014643]
[1771693749423,0.014642,68318.0,68311.0,0.014643]
[1771693749618,0.001,68315.0,68312.0,0.014643]
[1771693751023,0.001,68315.0,68313.0,0.014642]
[1771693751523,0.029283,68318.0,68312.0,0.014643]
[1771693751711,0.014642,68317.0,68312.0,0.014643]
[1771693752111,0.001,68315.0,68312.0,0.014643]
[1771693752518,0.001,68315.0,68313.0,0.014642]
[1771693752714,0.014642,68317.0,68313.0,0.014642]
[1771693753121,0.014642,68317.0,68312.0,0.014643]
[1771693753328,0.014642,68317.0,68308.0,0.014643]
[1771693753727,0.014642,68315.0,68308.0,0.014643]
[1771693753927,0.014642,68315.0,68310.0,0.014643]
[1771693754127,0.014642,68316.0,68310.0,0.029286]
[1771693754333,0.014642,68316.0,68310.0,0.014643]
[1771693754536,0.014642,68316.0,68311.0,0.014643]
[1771693754934,0.001,68315.0,68311.0,0.014643]
[1771693755324,0.014642,68316.0,68311.0,0.014643]
[1771693755527,0.014641,68318.0,68313.0,0.014642]
[1771693755724,0.014642,68317.0,68312.0,0.014643]
[1771693756035,0.014642,68317.0,68312.0,0.029286]
[1771693756231,0.014642,68316.0,68312.0,0.014643]
[1771693756431,0.014642,68317.0,68312.0,0.014643]
[1771693756632,0.014642,68316.0,68311.0,0.014643]
[1771693757340,0.014642,68317.0,68312.0,0.014643]
[1771693757540,0.029284,68317.0,68312.0,0.014643]
[1771693757834,0.014642,68317.0,68312.0,0.014643]
[1771693758234,0.014642,68317.0,68312.0,0.029285]
[1771693758934,0.014641,68318.0,68313.0,0.014642]
[1771693759133,0.014642,68317.0,68312.0,0.014642]
[1771693760734,0.014641,68318.0,68313.0,0.014642]
[1771693760940,0.014641,68318.0,68314.0,0.014642]
[1771693762636,0.014641,68319.0,68314.0,0.014642]
[1771693763638,0.014641,68321.0,68315.0,0.014642]
[1771693763639,0.014641,68320.0,68315.0,0.014642]
[1771693763942,0.014641,68321.0,68316.0,0.014642]
[1771693765235,0.01464,68323.0,68316.0,0.014642]
[1771693765436,0.001,68321.0,68318.0,0.014641]
[1771693765845,0.002,68321.0,68318.0,0.014641]
[1771693766245,0.001,68321.0,68317.0,0.014641]
[1771693766446,0.029281,68322.0,68317.0,0.014641]
[1771693766838,0.01464,68322.0,68317.0,0.014641]
[1771693768147,0.001,68321.0,68317.0,0.014641]
[1771693768350,0.014641,68320.0,68316.0,0.015642]
[1771693768643,0.015641,68321.0,68316.0,0.015642]
[1771693768845,0.015641,68321.0,68316.0,0.014642]
[1771693769443,0.014641,68321.0,68316.0,0.014642]
[1771693770249,0.014641,68321.0,68316.0,0.029284]
[1771693770750,0.014641,68321.0,68316.0,0.014642]
[1771693771047,0.014641,68321.0,68316.0,0.029284]
[1771693772849,0.014641,68322.0,68317.0,0.014641]
[1771693773140,0.014641,68322.0,68318.0,0.014641]
[1771693773338,0.01464,68322.0,68318.0,0.014641]
[1771693773537,0.01464,68322.0,68317.0,0.014642]
[1771693773934,0.01464,68322.0,68317.0,0.015642]
[1771693774548,0.01464,68322.0,68317.0,0.001]
[1771693775248,0.014641,68321.0,68317.0,0.001]
[1771693775643,0.014641,68321.0,68316.0,0.014642]
[1771693776143,0.014641,68320.0,68316.0,0.014642]
[1771693776348,0.01464,68322.0,68317.0,0.001]
[1771693776850,0.01464,68325.0,68316.0,0.014642]
[1771693777350,0.014641,68321.0,68316.0,0.014642]